bitfinex-derivatives/quotes_BTCF0:USTF0_20251208
["timestamp","ask_amount","ask_price","bid_price","bid_amount"]
[1765208350704,0.06742,89947.0,89946.0,0.00016675]
[1765208351109,0.022,89947.0,89946.0,0.00316675]
[1765208351302,0.022,89947.0,89946.0,0.07171675]
[1765208353715,0.09158,89947.0,89946.0,0.00316675]
[1765208355215,0.09158,89947.0,89913.0,0.011122]
[1765208355216,0.0111181,89945.0,89913.0,0.011122]
[1765208355418,0.0111181,89945.0,89880.0,0.33475485]
[1765208355419,0.0111218,89916.0,89890.0,0.0111248]
[1765208355714,0.0111218,89916.0,89881.0,0.09880841]
[1765208355715,0.0111225,89910.0,89909.0,0.03141]
[1765208355916,0.0111223,89911.0,89910.0,0.06597]
[1765208357620,0.0111219,89915.0,89910.0,0.06597]
[1765208357818,0.001,89916.0,89915.0,0.06597]
[1765208358121,0.00016674,89919.0,89918.0,0.06597]
[1765208359105,0.0111221,89913.0,89910.0,0.003]
[1765208359311,0.06631,89911.0,89910.0,0.003]
[1765208359719,0.0774333,89903.0,89902.0,0.00016685]
[1765208360221,0.06631,89887.0,89873.0,0.0142]
[1765208361214,0.06631,89887.0,89878.0,0.00016685]
[1765208361518,0.07231,89887.0,89886.0,0.00113631]
[1765208361713,0.0774362,89879.0,89878.0,0.00016685]
[1765208361912,0.0774369,89874.0,89873.0,0.0142]
[1765208362118,0.0774369,89874.0,89834.0,0.07972705]
[1765208362119,0.0111292,89856.0,89834.0,0.09002362]
[1765208362415,0.0111292,89856.0,89848.0,0.01113]
[1765208362615,0.0111286,89861.0,89860.0,0.06597]
[1765208362817,0.00010533,89861.0,89860.0,0.06597]
[1765208363218,0.00010533,89861.0,89860.0,0.03141]
[1765208363423,0.03166533,89861.0,89852.0,0.00016695]
[1765208363715,0.00010533,89861.0,89860.0,0.06597]
[1765208364122,0.06741533,89861.0,89860.0,0.001]
[1765208364321,0.06841533,89861.0,89860.0,0.004]
[1765208364522,0.03266533,89861.0,89860.0,0.003]
[1765208364727,0.03366533,89861.0,89860.0,0.003]
[1765208365110,0.00210533,89861.0,89860.0,0.06897]
[1765208366014,0.00110533,89861.0,89860.0,0.06597]
[1765208366214,0.00110533,89861.0,89860.0,0.06797]
[1765208366416,0.00310533,89861.0,89860.0,0.06897]
[1765208366611,0.03466533,89861.0,89860.0,0.003]
[1765208367218,0.00310533,89861.0,89860.0,0.06897]
[1765208373433,0.06941533,89861.0,89860.0,0.003]
[1765208373824,0.0774395,89853.0,89852.0,0.00016695]
[1765208374433,0.0774395,89853.0,89852.0,5e-08]
[1765208374619,0.0774395,89853.0,89810.0,0.0195]
[1765208374620,0.01946,89838.0,89810.0,0.0195]
[1765208374827,0.0111319,89834.0,89833.0,0.06597]
[1765208375426,0.00011076,89837.0,89836.0,0.06597]
[1765208376740,0.00111076,89837.0,89836.0,0.06697]
[1765208377128,0.00211076,89837.0,89836.0,0.06797]
[1765208377729,0.00111076,89837.0,89836.0,0.06697]
[1765208377924,0.00311076,89837.0,89836.0,0.06797]
[1765208379630,0.00016695,89845.0,89844.0,0.06597]
[1765208379830,0.00016695,89845.0,89844.0,0.0771006]
[1765208380634,0.0111274,89870.0,89869.0,0.06597]
[1765208381032,0.011129,89857.0,89856.0,0.06597]
[1765208381743,0.042689,89857.0,89856.0,0.06597]
[1765208381931,0.01113,89849.0,89848.0,0.03157695]
[1765208382440,0.01113,89849.0,89848.0,0.06613695]
[1765208383035,0.01513,89849.0,89848.0,0.06713695]
[1765208383344,0.01613,89849.0,89848.0,0.06713695]
[1765208383839,0.01313,89849.0,89848.0,0.06713695]
[1765208384636,0.01313,89849.0,89848.0,0.06813695]
[1765208385034,0.04602,89849.0,89848.0,0.06813695]
[1765208385234,0.04602,89849.0,89848.0,0.06713695]
[1765208385436,0.07999,89849.0,89848.0,0.00216695]
[1765208385643,0.07999,89849.0,89848.0,5e-08]
[1765208385943,0.0111335,89821.0,89820.0,0.06453]
[1765208386142,0.0769935,89821.0,89810.0,0.0195]
[1765208386339,0.0111345,89812.0,89811.0,0.07724583]
[1765208386639,0.0111342,89815.0,89814.0,0.06453]
[1765208387436,0.0111338,89818.0,89811.0,0.01271583]
[1765208387731,0.002,89821.0,89820.0,0.06653]
[1765208388537,0.0111334,89822.0,89821.0,0.0329]
[1765208388737,0.0111334,89822.0,89821.0,0.06453]
[1765208390042,0.001,89822.0,89821.0,0.06553]
[1765208390244,0.001,89822.0,89821.0,0.0766634]
[1765208390646,0.0111315,89837.0,89836.0,0.06453]
[1765208391151,0.0111298,89850.0,89849.0,0.06453]
[1765208391540,0.03615018,89850.0,89849.0,0.06453]
[1765208391946,0.0111298,89850.0,89849.0,0.06453]
[1765208392647,0.0291298,89850.0,89849.0,0.06753]
[1765208392845,0.018,89850.0,89849.0,0.06753]
[1765208393047,0.0111293,89855.0,89854.0,0.06453]
[1765208393946,0.0111293,89855.0,89849.0,0.002]
[1765208393947,0.01129585,89858.0,89857.0,0.06453]
[1765208394145,0.00016695,89858.0,89857.0,0.06453]
[1765208395244,0.011127,89874.0,89873.0,0.06453]
[1765208396056,0.044017,89874.0,89873.0,0.06453]
[1765208396253,0.044017,89874.0,89859.0,0.0111286]
[1765208396254,0.0111281,89865.0,89864.0,0.06453]
[1765208396559,0.0111288,89858.0,89857.0,0.002]
[1765208396750,0.0111288,89858.0,89857.0,0.06653]
[1765208396949,0.0111288,89858.0,89857.0,0.06453]
[1765208397346,0.06586,89857.0,89856.0,0.00016695]
[1765208398451,0.06586,89857.0,89840.0,0.01266576]
[1765208398452,0.0769909,89841.0,89840.0,0.01266576]
[1765208398858,0.0111314,89838.0,89837.0,0.06453]
[1765208399754,0.0111323,89830.0,89829.0,0.06052695]
[1765208399948,0.0111323,89830.0,89829.0,0.00016695]
[1765208399949,0.0705423,89830.0,89829.0,0.00016695]
[1765208400552,0.0705423,89830.0,89776.0,0.13816665]
[1765208400553,0.0705445,89812.0,89788.0,0.0111375]
[1765208400751,0.0705445,89812.0,89795.0,0.01267579]
[1765208400954,0.0705445,89812.0,89795.0,0.02381239]
[1765208401154,0.0705445,89812.0,89795.0,0.01267579]
[1765208401558,0.011137,89792.0,89791.0,0.06036]
[1765208401766,0.0111366,89796.0,89791.0,0.06036]
[1765208401968,0.011137,89793.0,89791.0,0.06036]
[1765208402158,0.011137,89793.0,89792.0,0.06036]
[1765208402474,0.01122875,89793.0,89792.0,0.06036]
[1765208402971,9.175e-05,89793.0,89792.0,0.06036]
[1765208403966,0.19354292,89878.0,89811.0,0.06036]
[1765208403967,0.21784181,89830.0,89811.0,0.06036]
[1765208404371,0.21784181,89830.0,89829.0,0.06036]
[1765208404558,0.0111319,89833.0,89832.0,0.06036]
[1765208404759,0.01120051,89833.0,89832.0,0.06036]
[1765208404964,6.861e-05,89833.0,89832.0,0.06036]
[1765208405164,0.02855861,89833.0,89832.0,0.03]
[1765208405371,6.861e-05,89833.0,89832.0,0.06036]
[1765208405866,0.0111321,89832.0,89829.0,0.001]
[1765208406056,0.05947861,89833.0,89829.0,0.001]
[1765208406057,0.05941,89830.0,89829.0,0.001]
[1765208406261,0.02849,89830.0,89829.0,0.031]
[1765208406876,0.00106861,89833.0,89829.0,0.031]
[1765208407071,0.00106861,89833.0,89832.0,0.06036]
[1765208407265,0.00016696,89841.0,89832.0,0.001]
[1765208407473,0.0011131,89840.0,89832.0,0.001]
[1765208407768,0.0111316,89837.0,89829.0,0.001]
[1765208407963,0.0011131,89840.0,89836.0,0.03]
[1765208408361,0.0111312,89839.0,89838.0,0.03]
[1765208408562,0.0111312,89839.0,89832.0,0.001]
[1765208408563,0.0111317,89836.0,89832.0,0.001]
[1765208409162,0.0111316,89836.0,89831.0,0.03]
[1765208409369,0.0111321,89832.0,89831.0,0.03]
[1765208409566,0.0111316,89836.0,89831.0,0.03]
[1765208409765,0.0041131,89840.0,89839.0,0.06036]
[1765208410179,0.00016696,89841.0,89840.0,0.0714911]
[1765208411165,0.00216696,89841.0,89840.0,0.0724911]
[1765208411361,0.00416696,89841.0,89840.0,0.0734911]
[1765208411766,0.00316696,89841.0,89840.0,0.06636]
[1765208412080,0.06257696,89841.0,89840.0,0.006]
[1765208412869,0.06157696,89841.0,89840.0,0.007]
[1765208413078,0.0696029,89825.0,89796.0,0.09696705]
[1765208413282,0.0696029,89825.0,89807.0,0.0111351]
[1765208413578,0.0111329,89825.0,89824.0,0.05912696]
[1765208413781,0.01744,89838.0,89824.0,0.05912696]
[1765208414078,0.0111311,89840.0,89839.0,0.02856]
[1765208414276,0.0393811,89840.0,89839.0,0.02856]
[1765208414474,0.00016696,89841.0,89840.0,0.05896]
[1765208415378,0.00016696,89841.0,89824.0,0.01316696]
[1765208415586,0.05847,89825.0,89824.0,0.01316696]
[1765208415771,0.05847,89825.0,89824.0,0.01116696]
[1765208416781,0.05947,89825.0,89824.0,0.00016696]
[1765208416977,0.05947,89825.0,89824.0,0.05912696]
[1765208416978,0.001,89825.0,89824.0,0.05912696]
[1765208417181,0.02925,89825.0,89824.0,0.05912696]
[1765208417367,0.06047,89825.0,89824.0,0.00216696]
[1765208417974,0.06047,89825.0,89798.0,0.18772]
[1765208417975,0.0111353,89806.0,89798.0,0.18772]
[1765208418174,0.0111349,89810.0,89798.0,0.18772]
[1765208418377,0.01744,89824.0,89798.0,0.18772]
[1765208418378,0.01744,89824.0,89810.0,0.01649]
[1765208418579,0.002,89825.0,89811.0,0.0111346]
[1765208418885,0.0111335,89821.0,89810.0,0.01649]
[1765208419580,0.01744,89824.0,89809.0,0.00016696]
[1765208419781,0.0111341,89816.0,89809.0,0.00016696]
[1765208419986,0.002,89810.0,89809.0,0.05912696]
[1765208420288,0.06047,89810.0,89809.0,0.02872696]
[1765208420477,0.07591,89810.0,89809.0,0.00016696]
[1765208420678,0.0870448,89810.0,89809.0,0.00016696]
[1765208420883,0.0111355,89805.0,89794.0,0.0111367]
[1765208421283,0.0111358,89803.0,89794.0,0.0111367]
[1765208421684,0.0111353,89806.0,89797.0,0.0111364]
[1765208421889,0.00116696,89810.0,89809.0,0.05896]
[1765208422085,0.00216696,89810.0,89809.0,0.05896]
[1765208422681,0.00116696,89810.0,89809.0,0.05896]
[1765208422878,0.00116696,89810.0,89809.0,0.05996]
[1765208423179,0.00216696,89810.0,89809.0,0.05996]
[1765208423379,0.21784181,89830.0,89828.0,0.02856]
[1765208423574,0.0111316,89837.0,89836.0,0.05896]
[1765208424091,0.0696016,89837.0,89836.0,0.05896]
[1765208424386,0.02825,89835.0,89834.0,0.04072492]
[1765208424592,0.0111311,89840.0,89836.0,0.05896]
[1765208424886,0.00016696,89845.0,89839.0,0.05896]
[1765208424887,0.0111307,89843.0,89839.0,0.05896]
[1765208425091,0.0111307,89843.0,89842.0,0.05896]
[1765208425281,0.00016696,89845.0,89842.0,0.05896]
[1765208425282,0.00016696,89845.0,89842.0,0.0304]
[1765208425585,0.01129746,89845.0,89844.0,0.05896]
[1765208426680,0.01429746,89845.0,89844.0,0.05996]
[1765208426878,0.07276746,89845.0,89844.0,0.001]
[1765208427082,0.07376746,89845.0,89844.0,0.001]
[1765208427285,0.00416696,89845.0,89844.0,0.05996]
[1765208427779,0.01529746,89845.0,89844.0,0.05996]
[1765208427980,0.00416696,89845.0,89844.0,0.05996]
[1765208428778,0.01224079,89865.0,89864.0,0.05896]
[1765208429092,0.00111279,89865.0,89864.0,0.05896]
[1765208429392,0.0111267,89876.0,89864.0,0.05896]
[1765208429578,0.0111263,89879.0,89878.0,0.05896]
[1765208430089,0.0111258,89883.0,89882.0,0.0089]
[1765208430289,0.00016696,89887.0,89886.0,0.05896]
[1765208432590,0.02841696,89887.0,89886.0,0.02956]
[1765208432780,0.02841696,89887.0,89886.0,0.001]
[1765208432781,0.05863696,89887.0,89886.0,0.001]
[1765208432982,0.05963696,89887.0,89886.0,0.002]
[1765208433896,0.05863696,89887.0,89886.0,0.001]
[1765208434088,0.05963696,89887.0,89886.0,0.002]
[1765208434479,0.05963696,89887.0,89886.0,0.001]
[1765208434685,0.05963696,89887.0,89886.0,0.002]
[1765208435289,0.05963696,89887.0,89886.0,0.001]
[1765208435491,0.05847,89871.0,89870.0,0.00016696]
[1765208436282,0.05847,89871.0,89849.0,0.0111299]
[1765208436488,0.30441948,89870.0,89860.0,0.05896]
[1765208436680,0.03022,89861.0,89849.0,0.02315423]
[1765208436890,0.011129,89857.0,89849.0,0.01202433]
[1765208437094,0.011129,89857.0,89845.0,0.0111304]
[1765208437596,0.011129,89857.0,89845.0,0.02325078]
[1765208437985,0.00016696,89860.0,89845.0,0.01212038]
[1765208438186,0.0111297,89851.0,89843.0,0.0089]
[1765208438992,0.02825,89844.0,89842.0,0.00016696]
[1765208439190,0.06782,89843.0,89842.0,0.00016696]
[1765208439390,0.05847,89833.0,89832.0,0.09007014]
[1765208439583,0.0111311,89840.0,89834.0,0.05896]
[1765208439787,0.0696011,89840.0,89839.0,0.05896]
[1765208440094,0.01744,89843.0,89817.0,0.03020002]
[1765208440290,0.00016696,89839.0,89821.0,0.00016696]
[1765208440484,0.0393833,89822.0,89821.0,0.05912696]
[1765208440887,0.0696033,89822.0,89821.0,0.00016696]
[1765208441789,0.0696042,89815.0,89814.0,0.00011274]
[1765208442397,0.0111359,89802.0,89788.0,0.0111375]
[1765208442594,0.0111342,89815.0,89795.0,0.05669]
[1765208442595,0.0111359,89801.0,89795.0,0.05669]
[1765208443389,9.923e-05,89800.0,89795.0,0.05669]
[1765208443591,9.923e-05,89800.0,89799.0,0.02822]
[1765208443794,9.923e-05,89800.0,89799.0,0.05669]
[1765208444586,0.31010197,89820.0,89791.0,0.0362723]
[1765208444587,0.31010197,89830.0,89829.0,0.02822]
[1765208444784,0.02721,89830.0,89829.0,0.02822]
[1765208444987,0.02721,89830.0,89829.0,0.05669]
[1765208444988,0.0111323,89830.0,89829.0,0.05669]
[1765208445397,0.011133,89825.0,89824.0,0.05669]
[1765208445792,0.001,89830.0,89829.0,0.05669]
[1765208446185,0.002,89830.0,89829.0,0.05769]
[1765208446389,0.002,89830.0,89829.0,0.05969]
[1765208446792,0.00016696,89833.0,89832.0,0.05669]
[1765208446991,0.0111296,89852.0,89851.0,0.05669]
[1765208447301,0.05754,89830.0,89829.0,0.003]
[1765208447696,0.05754,89830.0,89829.0,0.002]
[1765208447999,0.05854,89830.0,89829.0,0.003]
[1765208448392,0.05954,89830.0,89829.0,0.004]
[1765208448591,0.05954,89830.0,89829.0,0.0032797]
[1765208449000,0.0686733,89822.0,89821.0,0.00016696]
[1765208449208,0.0111333,89822.0,89791.0,0.2151371]
[1765208449400,0.0111362,89799.0,89791.0,0.2151371]
[1765208449995,0.0111362,89799.0,89798.0,0.02822]
[1765208450193,0.0111362,89799.0,89798.0,0.05669]
[1765208451297,0.00016696,89807.0,89791.0,0.21812514]
[1765208451298,0.011137,89792.0,89791.0,0.008]
[1765208451604,0.038347,89792.0,89791.0,0.006]
[1765208451804,0.038347,89792.0,89790.0,0.00016696]
[1765208452500,0.039347,89792.0,89791.0,0.006]
[1765208452695,0.070677,89792.0,89791.0,0.008]
[1765208452894,0.0111395,89772.0,89771.0,0.05669]
[1765208453095,0.31010197,89780.0,89771.0,0.05669]
[1765208453403,0.0111392,89775.0,89774.0,0.05669]
[1765208453597,0.0111399,89770.0,89769.0,0.02822]
[1765208454994,0.0121399,89770.0,89769.0,0.02822]
[1765208455190,0.0121399,89770.0,89769.0,0.05669]
[1765208455394,0.0131399,89770.0,89769.0,0.06169]
[1765208455596,0.00016705,89778.0,89777.0,0.05669]
[1765208455905,0.31010197,89810.0,89801.0,0.05669]
[1765208456297,0.0111352,89807.0,89806.0,0.05669]
[1765208456698,0.31010197,89820.0,89806.0,0.05669]
[1765208456906,0.0111346,89812.0,89811.0,0.05669]
[1765208457306,0.00016705,89815.0,89814.0,0.05669]
[1765208458409,0.01916705,89815.0,89814.0,0.05969]
[1765208458906,0.00316705,89815.0,89802.0,0.0111357]
[1765208459107,0.02030125,89815.0,89814.0,0.05769]
[1765208460308,0.07475125,89815.0,89814.0,0.001]
[1765208460500,0.01930125,89815.0,89814.0,0.05727]
[1765208460700,0.01330125,89815.0,89814.0,0.05627]
[1765208460896,0.00716705,89815.0,89814.0,0.05627]
[1765208461111,0.0111311,89840.0,89839.0,0.05627]
[1765208461300,0.0111308,89843.0,89842.0,0.02856]
[1765208461611,0.0111303,89847.0,89842.0,0.05627]
[1765208461800,0.31010197,89850.0,89839.0,0.02856]
[1765208462007,0.31010197,89849.0,89820.0,0.00959]
[1765208462306,0.0111317,89836.0,89826.0,0.00016696]
[1765208462710,0.0111319,89833.0,89826.0,0.00016696]
[1765208462909,0.0685827,89827.0,89826.0,0.00016696]
[1765208463407,0.45745,89827.0,89790.0,0.01804372]
[1765208463606,0.01708,89838.0,89790.0,0.00111372]
[1765208463607,0.05745,89796.0,89790.0,0.00111372]
[1765208464009,0.32718197,89820.0,89802.0,0.02856]
[1765208464214,0.0111345,89813.0,89808.0,0.05627]
[1765208464509,0.31010197,89818.0,89802.0,0.00016705]
[1765208464804,0.05745,89803.0,89802.0,0.00016705]
[1765208465006,0.32718197,89820.0,89805.0,0.05627]
[1765208465205,0.31010197,89830.0,89818.0,0.05627]
[1765208465409,0.0111336,89820.0,89818.0,0.05627]
[1765208465709,0.0111325,89829.0,89818.0,0.05627]
[1765208465897,0.0111309,89842.0,89818.0,0.05627]
[1765208465898,0.0111336,89820.0,89818.0,0.05627]
[1765208466099,0.00116705,89819.0,89818.0,0.05627]
[1765208467197,0.0111316,89837.0,89836.0,0.05627]
[1765208468103,0.3526364,89871.0,89836.0,0.05627]
[1765208468104,0.31010197,89846.0,89839.0,0.05627]
[1765208468413,0.08828269,89866.0,89850.0,0.05627]
[1765208468414,0.01129666,89851.0,89850.0,0.05627]
[1765208469302,0.03996666,89851.0,89850.0,0.05627]
[1765208469704,0.04096666,89851.0,89850.0,0.05727]
[1765208470607,0.01708,89880.0,89850.0,0.05827]
[1765208470911,0.01708,89880.0,89855.0,0.0111291]
[1765208470912,0.0111264,89878.0,89855.0,0.0111291]
[1765208471216,0.32718197,89880.0,89855.0,0.0111291]
[1765208471217,0.0111278,89867.0,89866.0,0.02856]
[1765208471408,0.32718197,89880.0,89870.0,0.05627]
[1765208471604,0.011127,89874.0,89873.0,0.05627]
[1765208471807,0.039797,89874.0,89873.0,0.02856]
[1765208472002,0.011127,89874.0,89873.0,0.02856]
[1765208472202,0.011127,89874.0,89873.0,0.05627]
[1765208472414,0.00016696,89882.0,89865.0,0.00016696]
[1765208472415,0.00016696,89882.0,89867.0,0.05731]
[1765208472608,0.0111261,89881.0,89867.0,0.05731]
[1765208472808,0.00016696,89882.0,89867.0,0.05731]
[1765208473015,0.0261269,89874.0,89873.0,0.05931]
[1765208473513,0.015,89874.0,89873.0,0.05931]
[1765208473706,0.007,89881.0,89880.0,0.05731]
[1765208474013,0.007,89881.0,89880.0,0.07433]
[1765208474312,0.007,89881.0,89880.0,0.05731]
[1765208474508,0.01316696,89882.0,89881.0,0.02947]
[1765208474816,0.01316696,89882.0,89881.0,0.05731]
[1765208475116,0.00016696,89882.0,89881.0,0.05731]
[1765208475712,0.00111248,89890.0,89881.0,0.05931]
[1765208476014,0.00111248,89890.0,89889.0,0.068435]
[1765208476718,0.0111226,89909.0,89908.0,0.02947]
[1765208476914,0.0388226,89909.0,89908.0,0.02947]
[1765208477114,0.00016686,89917.0,89914.0,0.05731]
[1765208477814,0.00016686,89917.0,89908.0,0.01225399]
[1765208478007,0.00016686,89917.0,89900.0,0.00016686]
[1765208478207,0.0792426,89909.0,89908.0,0.001]
[1765208478514,0.011,89909.0,89908.0,0.05831]
[1765208479112,0.05293407,89915.0,89914.0,0.03047]
[1765208479315,0.08235407,89915.0,89914.0,0.001]
[1765208479816,0.0111243,89895.0,89879.0,0.0111262]
[1765208480008,0.01645,89895.0,89878.0,0.01228339]
[1765208480205,0.0111261,89881.0,89880.0,0.02947]
[1765208480406,0.01645,89880.0,89864.0,0.0111281]
[1765208480711,0.0111275,89869.0,89859.0,0.0111287]
[1765208480912,0.0111275,89869.0,89859.0,0.01208043]
[1765208481109,0.32655197,89880.0,89851.0,0.0111296]
[1765208481416,0.00016686,89873.0,89866.0,0.02947]
[1765208481616,0.00016686,89873.0,89872.0,0.05731]
[1765208481817,0.00016686,89873.0,89872.0,0.02947]
[1765208482718,0.00016686,89873.0,89872.0,0.05731]
[1765208483618,0.00216686,89873.0,89872.0,0.05731]
[1765208483825,0.00316686,89873.0,89872.0,0.06531]
[1765208484417,0.00116686,89873.0,89872.0,0.07031]
[1765208484620,0.0111245,89893.0,89892.0,0.05731]
[1765208484824,0.31010197,89900.0,89892.0,0.05731]
[1765208485215,0.0111266,89876.0,89872.0,0.014]
[1765208485619,0.001,89873.0,89872.0,0.015]
[1765208485820,0.001,89873.0,89872.0,0.07231]
[1765208486130,0.002,89873.0,89872.0,0.07231]
[1765208486519,0.05912,89873.0,89872.0,0.015]
[1765208486725,0.05812,89873.0,89872.0,0.014]
[1765208486913,0.05812,89873.0,89872.0,0.015]
[1765208487117,0.05712,89873.0,89872.0,0.017]
[1765208487318,0.0111281,89864.0,89848.0,0.01211204]
[1765208487626,0.21118866,89858.0,89840.0,0.0122441]
[1765208487821,0.0111303,89847.0,89840.0,0.0122442]
[1765208488027,0.21118866,89850.0,89842.0,0.0111307]
[1765208488221,0.21118866,89850.0,89845.0,0.0111304]
[1765208488418,0.22231856,89850.0,89840.0,0.01317099]
[1765208488618,0.21118866,89850.0,89840.0,0.01317099]
[1765208488819,0.21118866,89850.0,89845.0,0.0111304]
[1765208489014,0.21118866,89850.0,89849.0,0.05731]
[1765208489234,0.0111295,89853.0,89849.0,0.05731]
[1765208490423,0.00016696,89856.0,89849.0,0.05731]
[1765208490424,0.001,89850.0,89849.0,0.05731]
[1765208490727,0.001,89850.0,89849.0,0.05831]
[1765208490927,0.002,89853.0,89852.0,0.05731]
[1765208491125,0.05912,89853.0,89852.0,0.02947]
[1765208491422,0.05712,89850.0,89849.0,0.001]
[1765208491624,0.05812,89850.0,89849.0,0.012]
[1765208491827,0.001,89850.0,89849.0,0.06931]
[1765208492518,0.002,89850.0,89849.0,0.06931]
[1765208493123,0.001,89850.0,89849.0,0.05831]
[1765208493430,0.05812,89850.0,89849.0,0.001]
[1765208493820,0.0682509,89841.0,89840.0,0.0011131]
[1765208494024,0.0111338,89819.0,89815.0,0.08908088]
[1765208494329,0.05712,89816.0,89815.0,0.08908088]
[1765208494723,0.05712,89816.0,89813.0,0.01231972]
[1765208494924,0.05712,89816.0,89801.0,0.0111359]
[1765208494925,0.05712,89815.0,89801.0,0.0111359]
[1765208495126,0.05712,89815.0,89806.0,0.00016696]
[1765208495322,0.05712,89815.0,89807.0,0.01228723]
[1765208495524,0.05712,89815.0,89806.0,0.00016696]
[1765208495922,0.05712,89815.0,89807.0,0.01226557]
[1765208496119,0.05712,89815.0,89806.0,0.00016696]
[1765208496525,0.05912,89815.0,89806.0,0.00016696]
[1765208496919,0.06012,89815.0,89814.0,0.00110031]
[1765208497521,0.06112,89815.0,89814.0,0.00110031]
[1765208498127,0.0327,89815.0,89814.0,0.03057031]
[1765208498322,0.0307,89815.0,89814.0,0.00110031]
[1765208498523,0.06312,89815.0,89814.0,0.00110031]
[1765208499223,0.06012,89815.0,89814.0,0.00110031]
[1765208499431,0.06112,89815.0,89814.0,0.00110031]
[1765208500229,0.05712,89807.0,89806.0,0.00016696]
[1765208500421,0.0682552,89807.0,89806.0,0.00016696]
[1765208501225,0.06836902,89807.0,89806.0,0.00016696]
[1765208502727,0.07036902,89807.0,89806.0,0.00016696]
[1765208503521,0.07336902,89807.0,89806.0,0.00116696]
[1765208506829,0.0668571,89791.0,89790.0,0.05799372]
[1765208507033,0.0396771,89791.0,89790.0,0.06994528]
[1765208507628,0.0111368,89795.0,89794.0,0.05688]
[1765208507832,0.0668571,89791.0,89790.0,0.00111372]
[1765208508027,0.0678571,89791.0,89790.0,0.00211372]
[1765208508227,0.0688571,89791.0,89790.0,0.00211372]
[1765208508830,0.0406771,89791.0,89790.0,0.05899372]
[1765208509535,0.0668571,89791.0,89790.0,0.02839372]
[1765208509832,0.0834871,89791.0,89790.0,0.00111372]
[1765208510142,0.08560092,89791.0,89790.0,0.00211372]
[1765208510841,0.08660092,89791.0,89790.0,0.00211372]
[1765208511822,0.01425092,89791.0,89790.0,0.05899372]
[1765208512229,0.00311382,89791.0,89790.0,0.05899372]
[1765208512739,0.07546382,89791.0,89790.0,0.00211372]
[1765208513040,0.07546382,89791.0,89782.0,0.00016706]
[1765208513041,0.0668581,89783.0,89782.0,0.00016706]
[1765208514329,0.0668581,89783.0,89782.0,0.00216706]
[1765208514330,0.0708581,89783.0,89782.0,0.00216706]
[1765208514836,0.0668602,89766.0,89765.0,0.00111403]
[1765208515041,0.06697402,89766.0,89765.0,0.00111403]
[1765208515940,0.06897402,89766.0,89765.0,0.00411403]
[1765208516641,0.0668634,89741.0,89740.0,0.00133721]
[1765208517642,0.06698417,89741.0,89740.0,0.00133721]
[1765208517939,0.06798417,89741.0,89740.0,0.00233721]
[1765208519044,0.05884077,89741.0,89740.0,0.00233721]
[1765208520037,0.00312077,89741.0,89740.0,0.05735721]
[1765208520238,0.06227077,89741.0,89740.0,0.00233721]
[1765208520448,0.00312077,89741.0,89740.0,0.06003721]
[1765208521037,0.06227077,89741.0,89740.0,0.00233721]
[1765208521236,0.00312077,89741.0,89740.0,0.06003721]
[1765208521749,0.06227077,89741.0,89740.0,0.00233721]
[1765208523233,0.00312077,89741.0,89740.0,0.06003721]
[1765208523640,0.00016706,89749.0,89748.0,0.0688425]
[1765208523844,0.00016706,89749.0,89748.0,0.0577]
[1765208524341,0.00016706,89749.0,89744.0,0.0111429]
[1765208524342,0.05915,89741.0,89740.0,0.00233721]
[1765208524536,0.05925055,89741.0,89740.0,0.00233721]
[1765208524737,0.05925055,89741.0,89740.0,0.00133721]
[1765208525746,0.06225055,89741.0,89740.0,0.00133721]
[1765208526049,0.05925055,89741.0,89740.0,0.00133721]
[1765208526348,0.06825055,89741.0,89740.0,0.00233721]
[1765208526944,0.06725055,89741.0,89740.0,0.03129721]
[1765208527150,0.07939395,89741.0,89740.0,0.03129721]
[1765208527748,0.00910055,89741.0,89740.0,0.05903721]
[1765208529147,0.00910055,89741.0,89740.0,0.07018071]
[1765208529345,0.0111391,89775.0,89766.0,0.0577]
[1765208529547,0.02948,89773.0,89772.0,0.0577]
[1765208529850,0.01663,89778.0,89740.0,0.00133721]
[1765208529851,0.01776,89765.0,89740.0,0.00133721]
[1765208530047,0.0111401,89767.0,89764.0,0.02996]
[1765208530249,0.0111407,89763.0,89751.0,0.011142]
[1765208530445,0.21118866,89761.0,89748.0,0.00016706]
[1765208530751,0.02948,89749.0,89748.0,0.00016706]
[1765208530943,0.02948,89749.0,89748.0,0.03012706]
[1765208531140,0.0111412,89759.0,89749.0,0.0111424]
[1765208531344,0.0111415,89756.0,89748.0,0.00016706]
[1765208531643,0.011,89761.0,89755.0,0.0577]
[1765208531949,0.011,89761.0,89760.0,0.0577]
[1765208532136,0.00016706,89766.0,89765.0,0.0745104]
[1765208532736,0.0111383,89782.0,89765.0,0.40636]
[1765208532947,0.0111383,89782.0,89756.0,0.21118866]
[1765208532948,0.0111392,89775.0,89774.0,0.02885]
[1765208533143,0.0691692,89775.0,89774.0,0.02885]
[1765208533343,0.0691692,89775.0,89767.0,0.0111401]
[1765208533547,0.05803,89775.0,89760.0,0.35888]
[1765208533852,0.00016706,89776.0,89775.0,0.0681491]
[1765208534245,0.00016706,89776.0,89775.0,0.05701]
[1765208535040,0.00216706,89776.0,89775.0,0.06101]
[1765208536145,0.00316706,89776.0,89775.0,0.06301]
[1765208536350,0.0111368,89794.0,89793.0,0.02885]
[1765208536740,0.0691668,89794.0,89793.0,0.02885]
[1765208536951,0.0408268,89794.0,89793.0,0.05701]
[1765208537546,0.02969,89794.0,89793.0,0.05701]
[1765208537850,0.003,89794.0,89793.0,0.05901]
[1765208538457,0.004,89794.0,89793.0,0.05901]
[1765208538854,0.00016706,89802.0,89793.0,0.05901]
[1765208538855,0.00016706,89802.0,89801.0,0.0681459]
[1765208539057,0.0111328,89827.0,89826.0,0.05701]
[1765208539263,0.01655,89830.0,89793.0,0.002]
[1765208539555,0.01655,89830.0,89799.0,0.011136]
[1765208539556,0.0111349,89809.0,89799.0,0.011136]
[1765208539756,0.0111344,89814.0,89794.0,0.15348]
[1765208539944,0.00016706,89813.0,89802.0,0.0111358]
[1765208540147,0.00016706,89813.0,89812.0,0.05701]
[1765208540342,0.06933146,89813.0,89801.0,0.001]
[1765208540654,0.06933146,89813.0,89802.0,0.0111358]
[1765208540851,0.0111351,89808.0,89801.0,0.002]